fUSD/lending_fUSD_20240426
["ID","MTS","AMOUNT","RATE_DAILY","PERIOD"]
[323706289,1714170642336,-500.0,0.00012899,2]
[323706290,1714170642345,-500.0,0.00012899,2]
[323706291,1714170642355,-500.0,0.00012899,2]
[323706292,1714170642364,-547.46,0.00012899,2]
[323706293,1714170642373,-500.0,0.00012899,2]
[323706294,1714170642382,-500.0,0.00012899,2]
[323706295,1714170642391,-500.0,0.00012899,2]
[323706296,1714170642400,-500.0,0.00012899,2]
[323706297,1714170642410,-500.0,0.00012899,2]
[323706298,1714170642421,-500.0,0.00012899,2]
[323706299,1714170642432,-500.0,0.00012899,2]
[323706300,1714170642441,-500.0,0.00012899,2]
[323706301,1714170642451,-500.0,0.00012899,2]
[323706302,1714170642460,-500.0,0.00012899,2]
[323706303,1714170642469,-500.0,0.00012899,2]
[323706304,1714170642478,-500.0,0.00012899,2]
[323706305,1714170642487,-500.0,0.00012899,2]
[323706306,1714170642497,-500.0,0.00012899,2]
[323706307,1714170642507,-500.0,0.00012899,2]
[323706308,1714170642516,-500.0,0.00012899,2]
[323706309,1714170642525,-500.0,0.00012899,2]
[323706310,1714170642534,-500.0,0.00012899,2]
[323706311,1714170642544,-500.0,0.00012899,2]
[323706312,1714170642554,-500.0,0.00012899,2]
[323706313,1714170642564,-500.0,0.00012899,2]
[323706314,1714170642573,-500.0,0.00012899,2]
[323706315,1714170642582,-500.0,0.00012899,2]
[323706316,1714170642592,-343.05,0.00012899,2]
[323706317,1714170642602,-500.0,0.00012899,2]
[323706318,1714170642611,-500.0,0.00012899,2]
[323706319,1714170642620,-500.0,0.00012899,2]
[323706320,1714170642630,-500.0,0.00012899,2]
[323706321,1714170642639,-500.0,0.00012899,2]
[323706322,1714170642648,-500.0,0.00012899,2]
[323706323,1714170642657,-500.0,0.00012899,2]
[323706324,1714170642667,-500.0,0.00012899,2]
[323706325,1714170642676,-500.0,0.00012899,2]
[323706326,1714170642686,-500.0,0.00012899,2]
[323706327,1714170642697,-500.0,0.00012899,2]
[323706328,1714170642706,-500.0,0.00012899,2]
[323706329,1714170642715,-500.0,0.00012899,2]
[323706330,1714170642724,-447.91161317,0.00012899,2]
[323706331,1714170642734,-500.0,0.00012899,2]
[323706332,1714170642746,-500.0,0.00012899,2]
[323706333,1714170642755,-500.0,0.00012899,2]
[323706334,1714170642765,-500.0,0.00012899,2]
[323706335,1714170642774,-243.73,0.00012899,2]
[323706336,1714170642783,-425.89,0.00012899,2]
[323706337,1714170642793,-113.98850624,0.00012899,2]
[323706338,1714170642810,-386.01149376,0.00012899,2]
[323706339,1714170642820,-500.0,0.00012899,2]
[323706340,1714170642829,-500.0,0.00012899,2]
[323706341,1714170642839,-500.0,0.00012899,2]
[323706342,1714170642848,-500.0,0.00012899,2]
[323706343,1714170642858,-416.78850524,0.00012899,2]
[323706357,1714170643391,-1116.10352079,0.00012358,2]
[323706358,1714170643400,-187.37149476,0.00012899,2]
[323706359,1714170643409,-500.0,0.00012899,2]
[323706360,1714170643418,-500.0,0.00012899,2]
[323706361,1714170643428,-500.0,0.00012899,2]
[323706362,1714170643437,-365.97088217,0.000129,2]
[323706363,1714170643446,-214.43705407,0.000129,2]
[323706364,1714170643455,-1394.67938197,0.000129,2]
[323706365,1714170643605,-254.4825338,0.000129,2]
[323706366,1714170643658,-1000.87999974,0.000129,2]
[323706367,1714170643669,-704.733448,0.000129,2]
[323706368,1714170643680,-3159.79999999,0.000129,2]
[323706373,1714170646250,-151.68,0.00012336,2]
[323706374,1714170646262,-318.6446092,0.00012336,2]
[323706375,1714170646307,-181.3553908,0.00012336,2]
[323706376,1714170646316,-235.20633426,0.00012357,2]
[323706377,1714170646363,-514.26325644,0.00012357,2]
[323706378,1714170646373,-409.17053992,0.00012357,2]
[323706379,1714170646382,-381.66120362,0.0001261,2]
[323706380,1714170646424,-118.33879638,0.0001261,2]
[323706381,1714170646432,-500.0,0.00012884,2]
[323706382,1714170646442,-165.08620362,0.00012899,2]
[323706383,1714170646454,-334.91379638,0.00012899,2]
[323706384,1714170646463,-88616.91807419,0.000129,2]
[323706385,1714170646473,-4524.19543814,0.000129,2]
[323706386,1714170646482,-4524.19543812,0.000129,2]
[323706387,1714170646492,-4524.19543812,0.000129,2]
[323706388,1714170646501,-4524.19543812,0.000129,2]
[323706389,1714170646511,-4524.19543812,0.000129,2]
[323706390,1714170646520,-4524.19543812,0.000129,2]
[323706391,1714170646529,-4524.19543812,0.000129,2]
[323706392,1714170646538,-4524.19543812,0.000129,2]
[323706393,1714170646548,-376.33794018,0.000129,2]
[323706394,1714170646557,-3647.15957544,0.000129,2]
[323706395,1714170646565,-5483.92524443,0.000129,2]
[323706396,1714170646575,-197.85840028,0.000129,2]
[323706397,1714170646585,-550.0,0.0001297,2]
[323706398,1714170646594,-394.38,0.00012985,2]
[323706399,1714170646604,-500.0,0.00012985,2]
[323706400,1714170646613,-500.0,0.00012985,2]
[323706401,1714170646623,-500.0,0.00012985,2]
[323706402,1714170646632,-413.26,0.00012985,2]
[323706403,1714170646641,-500.0,0.00012985,2]
[323706404,1714170646651,-500.0,0.00012985,2]
[323706405,1714170646660,-500.0,0.00012985,2]
[323706406,1714170646669,-338.29,0.00012985,2]
[323706407,1714170646678,-805.4,0.0001299,2]
[323706408,1714170646687,-805.4,0.0001299,2]
[323706409,1714170646697,-805.4,0.0001299,2]
[323706410,1714170646706,-805.4,0.0001299,2]
[323706411,1714170646715,-805.4,0.0001299,2]
[323706412,1714170646725,-805.4,0.0001299,2]
[323706413,1714170646734,-805.4,0.0001299,2]
[323706414,1714170646744,-412.53184285,0.00012999,2]
[323706415,1714170646759,-5545.84899001,0.00012999,2]
[323706416,1714170646769,-1401.79505017,0.00012999,3]
[323706417,1714170646778,-49536.31857044,0.00013,2]
[323706418,1714170646791,-304968.96003378,0.00013,2]
[323706419,1714171280648,400.0,0.00025,120]
[323706420,1714171520220,153.69885098,0.0002,120]
[323706477,1714171831465,-232.5,9.24e-05,2]
[323706478,1714171831474,-155.0,0.000109,2]
[323706479,1714171831483,-788.98609126,0.00011062,2]
[323706480,1714171831521,-2233.27500874,0.00011062,2]
[323706481,1714171831530,-353.07,0.00011146,2]
[323706482,1714171831540,-463.55,0.0001116,2]
[323706483,1714171831550,-2736.24204579,0.00011162,2]
[323706484,1714171831562,-15067.000015,0.00011162,2]
[323706485,1714171831573,-404.406,0.00011162,2]
[323706486,1714171831593,-787.27814909,0.00011162,2]
[323706487,1714171831605,-4318.56012524,0.00011162,2]
[323706488,1714171831629,-586.51366488,0.00011162,2]
[323706489,1714171831638,-98.54058247,0.00011177,2]
[323706490,1714171831649,-81.45941753,0.00011177,2]
[323706491,1714171831659,-200.0,0.00011182,2]
[323706492,1714171831669,-168.15,0.00011232,2]
[323706493,1714171831678,-150.0,0.0001126,2]
[323706494,1714171831687,-153.81,0.00011288,2]
[323706495,1714171831696,-466.46,0.00011288,2]
[323706496,1714171831705,-499.99,0.00011288,2]
[323706497,1714171831714,-1121.13,0.00011288,2]
[323706498,1714171831723,-676.31,0.00011288,2]
[323706499,1714171831732,-150.99,0.00011288,2]
[323706501,1714171831742,-160.0,0.00011296,2]
[323706502,1714171831750,-153.81,0.00011405,2]
[323706503,1714171831759,-232.5,0.00011504,2]
[323706504,1714171831769,-153.81,0.00011523,2]
[323706505,1714171831778,-153.81,0.00011641,2]
[323706506,1714171831787,-153.81,0.00011758,2]
[323706507,1714171831796,-153.81,0.00011876,2]
[323706508,1714171831805,-1561.55684754,0.00011999,2]
[323706509,1714171831817,-517.9614323,0.00011999,2]
[323706510,1714171831829,-571.43811658,0.00011999,2]
[323706511,1714171831838,-231.67209952,0.00011999,2]
[323706512,1714171831848,-665.08469825,0.00011999,2]
[323706513,1714171831859,-3913.38875614,0.00011999,2]
[323706514,1714171831870,-484.32,0.00011999,2]
[323706517,1714171831889,-3537.06444609,0.00011999,2]
[323706519,1714171831899,-4006.39870016,0.00012,2]
[323706521,1714171831910,-576.32490571,0.00012,2]
[323706523,1714171831921,-275.79509557,0.00012,2]
[323706544,1714171837593,-863.55351901,0.00012,2]
[323706546,1714171837605,-4058.37164456,0.00012,2]
[323706548,1714171837616,-2022.6949102,0.00012,2]
[323706549,1714171837627,-729.82228752,0.00012,2]
[323706550,1714171837643,-379.88735711,0.00012,2]
[323706551,1714171837674,-1325.81220542,0.00012,2]
[323706552,1714171837703,-766.83774076,0.00012,2]
[323706553,1714171837713,-1748.09424184,0.00012,2]
[323706554,1714171837722,-4845.39941065,0.00012,2]
[323706555,1714171837752,-154.60058935,0.00012,2]
[323706556,1714171837762,-409.17053992,0.00012054,2]
[323706557,1714171837773,-14925.94,0.00012055,2]
[323706558,1714171837782,-285.92,0.0001211,2]
[323706559,1714171837791,-285.92,0.00012113,2]
[323706560,1714171837802,-285.92,0.00012116,2]
[323706561,1714171837811,-285.92,0.0001212,2]
[323706562,1714171837821,-285.92,0.00012123,2]
[323706563,1714171837830,-285.92,0.00012126,2]
[323706564,1714171837840,-285.92,0.00012129,2]
[323706565,1714171837849,-285.92,0.00012132,2]
[323706566,1714171837858,-285.92,0.00012135,2]
[323706567,1714171837867,-285.92,0.00012139,2]
[323706568,1714171837876,-285.92,0.00012142,2]
[323706569,1714171837886,-285.92,0.00012145,2]
[323706570,1714171837895,-285.92,0.00012148,2]
[323706571,1714171837904,-285.92,0.00012151,2]
[323706572,1714171837913,-285.92,0.00012155,2]
[323706574,1714171837922,-285.92,0.00012158,2]
[323706576,1714171837931,-285.92,0.00012161,2]
[323706578,1714171837940,-285.92,0.00012164,2]
[323706580,1714171837949,-285.92,0.00012167,2]
[323706582,1714171837957,-285.92,0.0001217,2]
[323706584,1714171837966,-515.0,0.00012301,2]
[323706586,1714171837976,-512.0,0.00012328,2]
[323706587,1714171837985,-500.0,0.00012336,2]
[323706589,1714171837994,-500.0,0.00012336,2]
[323706590,1714171838003,-572.18,0.00012336,2]
[323706591,1714171838012,-500.0,0.00012336,2]
[323706592,1714171838022,-500.0,0.00012336,2]
[323706593,1714171838031,-500.0,0.00012336,2]
[323706594,1714171838041,-500.0,0.00012336,2]
[323706595,1714171838050,-500.0,0.00012336,2]
[323706596,1714171838059,-500.0,0.00012336,2]
[323706597,1714171838068,-500.0,0.00012336,2]
[323706598,1714171838077,-500.0,0.00012336,2]
[323706599,1714171838087,-500.0,0.00012336,2]
[323706600,1714171838098,-500.0,0.00012336,2]
[323706601,1714171838108,-500.0,0.00012336,2]
[323706602,1714171838118,-500.0,0.00012336,2]
[323706603,1714171838127,-210.5135652,0.00012336,2]
[323706604,1714171838143,-100.9164348,0.00012336,2]
[323706605,1714171838151,-363.31,0.00012336,2]
[323706606,1714171838161,-559.35,0.00012336,2]
[323706607,1714171838170,-500.0,0.00012336,2]
[323706608,1714171838180,-500.0,0.00012336,2]
[323706609,1714171838190,-500.0,0.00012336,2]
[323706610,1714171838199,-500.0,0.00012336,2]
[323706611,1714171838208,-500.0,0.00012336,2]
[323706612,1714171838217,-265.15410615,0.00012336,2]
[323706613,1714171838226,-500.0,0.00012336,2]
[323706614,1714171838235,-500.0,0.00012336,2]
[323706615,1714171838244,-500.0,0.00012336,2]
[323706616,1714171838253,-500.0,0.00012336,2]
[323706617,1714171838262,-500.0,0.00012336,2]
[323706618,1714171838272,-500.0,0.00012336,2]
[323706619,1714171838281,-500.0,0.00012336,2]
[323706620,1714171838290,-500.0,0.00012336,2]
[323706621,1714171838299,-565.55,0.00012336,2]
[323706622,1714171838309,-500.0,0.00012336,2]
[323706623,1714171838318,-500.0,0.00012336,2]
[323706624,1714171838328,-500.0,0.00012336,2]
[323706625,1714171838338,-216.48110006,0.00012336,2]
[323706626,1714171838346,-644.53,0.00012336,2]
[323706627,1714171838356,-500.0,0.00012336,2]
[323706628,1714171838365,-500.0,0.00012336,2]
[323706629,1714171838374,-500.0,0.00012336,2]
[323706630,1714171838383,-500.0,0.00012336,2]
[323706631,1714171838392,-521.98,0.00012336,2]
[323706632,1714171838402,-500.0,0.00012336,2]
[323706633,1714171838411,-500.0,0.00012336,2]
[323706634,1714171838421,-500.0,0.00012336,2]
[323706635,1714171838431,-500.0,0.00012336,2]
[323706636,1714171838440,-500.0,0.00012336,2]
[323706637,1714171838449,-500.0,0.00012336,2]
[323706638,1714171838458,-205.0,0.00012336,2]
[323706639,1714171838663,-500.0,0.00012336,2]
[323706640,1714171838675,-500.0,0.00012336,2]
[323706641,1714171838684,-434.2,0.00012336,2]
[323706642,1714171838693,-194.38,0.00012336,2]
[323706643,1714171838702,-500.0,0.00012336,2]
[323706644,1714171838711,-328.73,0.00012336,2]
[323706645,1714171838720,-500.0,0.00012336,2]
[323706646,1714171838729,-500.0,0.00012336,2]
[323706647,1714171838738,-500.0,0.00012336,2]
[323706648,1714171838747,-500.0,0.00012336,2]
[323706649,1714171838757,-500.0,0.00012336,2]
[323706650,1714171838766,-500.0,0.00012336,2]
[323706651,1714171838775,-500.0,0.00012336,2]
[323706652,1714171838784,-500.0,0.00012336,2]
[323706653,1714171838793,-219.3733968,0.00012336,2]
[323706654,1714171838802,-500.0,0.00012336,2]
[323706655,1714171838811,-500.0,0.00012336,2]
[323706656,1714171838821,-315.04,0.00012336,2]
[323706657,1714171838832,-500.0,0.00012336,2]
[323706658,1714171838841,-500.0,0.00012336,2]
[323706659,1714171838852,-500.0,0.00012336,2]
[323706660,1714171838861,-617.01,0.00012336,2]
[323706661,1714171838870,-500.0,0.00012336,2]
[323706662,1714171838879,-500.0,0.00012336,2]
[323706663,1714171838888,-500.0,0.00012336,2]
[323706664,1714171838898,-500.0,0.00012336,2]
[323706665,1714171838907,-500.0,0.00012336,2]
[323706666,1714171838917,-500.0,0.00012336,2]
[323706667,1714171838926,-500.0,0.00012336,2]
[323706668,1714171838936,-500.0,0.00012336,2]
[323706669,1714171838945,-500.0,0.00012336,2]
[323706670,1714171838954,-500.0,0.00012336,2]
[323706671,1714171838963,-500.0,0.00012336,2]
[323706672,1714171838971,-500.0,0.00012336,2]
[323706673,1714171838981,-500.0,0.00012336,2]
[323706674,1714171838990,-1293.62492362,0.00012348,2]
[323706675,1714171839001,-251.64589912,0.000125,2]
[323706676,1714171839010,-167.33,0.00012515,2]
[323706677,1714171839021,-463.55,0.00012555,2]
[323706678,1714171839031,-200.0,0.00012579,2]
[323706679,1714171839041,-500.0,0.0001261,2]
[323706680,1714171839050,-364.61806727,0.0001261,2]
[323706681,1714171839059,-500.0,0.0001261,2]
[323706682,1714171839069,-500.0,0.0001261,2]
[323706683,1714171839078,-500.0,0.0001261,2]
[323706684,1714171839087,-249.31,0.0001261,2]
[323706685,1714171839097,-540.77,0.0001261,2]
[323706686,1714171839107,-500.0,0.0001261,2]
[323706687,1714171839120,-500.0,0.0001261,2]
[323706688,1714171839129,-500.0,0.0001261,2]
[323706689,1714171839139,-193.35,0.0001261,2]
[323706690,1714171839149,-500.0,0.0001261,2]
[323706691,1714171839159,-416.62,0.0001261,2]
[323706692,1714171839168,-500.0,0.0001261,2]
[323706693,1714171839177,-500.0,0.0001261,2]
[323706694,1714171839188,-500.0,0.0001261,2]
[323706695,1714171839198,-500.0,0.0001261,2]
[323706696,1714171839209,-500.0,0.0001261,2]
[323706697,1714171839219,-500.0,0.0001261,2]
[323706698,1714171839230,-500.0,0.0001261,2]
[323706699,1714171839239,-500.0,0.0001261,2]
[323706700,1714171839248,-500.0,0.0001261,2]
[323706701,1714171839257,-500.0,0.0001261,2]
[323706702,1714171839268,-500.0,0.0001261,2]
[323706703,1714171839277,-500.0,0.0001261,2]
[323706704,1714171839286,-160.0,0.00012708,2]
[323706705,1714171839295,-7500.0,0.00012798,2]
[323706706,1714171839304,-669.93,0.00012883,2]
[323706707,1714171839314,-500.0,0.00012883,2]
[323706708,1714171839323,-500.0,0.00012883,2]
[323706709,1714171839332,-500.0,0.00012883,2]
[323706710,1714171839342,-500.0,0.00012883,2]
[323706711,1714171839351,-500.0,0.00012883,2]
[323706712,1714171839360,-543.23,0.00012883,2]
[323706713,1714171839369,-500.0,0.00012883,2]
[323706714,1714171839378,-500.0,0.00012883,2]
[323706715,1714171839387,-500.0,0.00012883,2]
[323706716,1714171839396,-500.0,0.00012883,2]
[323706717,1714171839406,-500.0,0.00012883,2]
[323706718,1714171839415,-500.0,0.00012883,2]
[323706719,1714171839424,-500.0,0.00012883,2]
[323706720,1714171839433,-500.0,0.00012883,2]
[323706721,1714171839442,-500.0,0.00012883,2]
[323706722,1714171839451,-500.0,0.00012883,2]
[323706723,1714171839461,-500.0,0.00012883,2]
[323706724,1714171839470,-500.0,0.00012883,2]
[323706725,1714171839479,-500.0,0.00012883,2]
[323706726,1714171839488,-500.0,0.00012883,2]
[323706727,1714171839497,-500.0,0.00012883,2]
[323706728,1714171839507,-500.0,0.00012883,2]
[323706729,1714171839516,-500.0,0.00012883,2]
[323706730,1714171839525,-500.0,0.00012883,2]
[323706731,1714171839534,-997.35,0.00012883,2]
[323706732,1714171839544,-500.0,0.00012883,2]
[323706733,1714171839553,-899.12,0.00012883,2]
[323706734,1714171839562,-500.0,0.00012883,2]
[323706735,1714171839571,-500.0,0.00012883,2]
[323706736,1714171839581,-500.0,0.00012883,2]
[323706737,1714171839590,-500.0,0.00012883,2]
[323706738,1714171839599,-511.47,0.00012883,2]
[323706739,1714171839608,-500.0,0.00012883,2]
[323706740,1714171839617,-500.0,0.00012883,2]
[323706741,1714171839626,-500.0,0.00012883,2]
[323706742,1714171839636,-500.0,0.00012883,2]
[323706743,1714171839645,-500.0,0.00012883,2]
[323706744,1714171839653,-1933.27,0.00012883,2]
[323706745,1714171839662,-500.0,0.00012883,2]
[323706746,1714171839671,-500.0,0.00012883,2]
[323706747,1714171839680,-500.0,0.00012883,2]
[323706748,1714171839689,-500.0,0.00012883,2]
[323706749,1714171839698,-500.0,0.00012883,2]
[323706750,1714171839708,-500.0,0.00012883,2]
[323706751,1714171839717,-500.0,0.00012883,2]
[323706752,1714171839727,-500.0,0.00012883,2]
[323706753,1714171839736,-500.0,0.00012883,2]
[323706754,1714171839745,-500.0,0.00012883,2]
[323706755,1714171839753,-500.0,0.00012883,2]
[323706756,1714171839762,-500.0,0.00012883,2]
[323706757,1714171839772,-839.19,0.00012883,2]
[323706758,1714171839781,-500.0,0.00012883,2]
[323706759,1714171839790,-500.0,0.00012883,2]
[323706760,1714171839799,-500.0,0.00012883,2]
[323706761,1714171839808,-500.0,0.00012883,2]
[323706762,1714171839817,-500.0,0.00012883,2]
[323706763,1714171839826,-500.0,0.00012884,2]
[323706764,1714171839835,-500.0,0.00012884,2]
[323706765,1714171839844,-500.0,0.00012884,2]
[323706766,1714171839853,-500.0,0.00012884,2]
[323706767,1714171839862,-500.0,0.00012884,2]
[323706768,1714171839871,-250.78,0.00012884,2]
[323706769,1714171839881,-500.0,0.00012884,2]
[323706770,1714171839890,-500.0,0.00012884,2]
[323706771,1714171839899,-500.0,0.00012884,2]
[323706772,1714171839908,-500.0,0.00012884,2]
[323706773,1714171839917,-500.0,0.00012884,2]
[323706774,1714171839926,-500.0,0.00012884,2]
[323706775,1714171839935,-500.0,0.00012884,2]
[323706777,1714171839944,-500.0,0.00012884,2]
[323706778,1714171839954,-500.0,0.00012884,2]
[323706779,1714171839962,-500.0,0.00012884,2]
[323706780,1714171839972,-500.0,0.00012896,2]
[323706781,1714171839980,-500.0,0.00012896,2]
[323706782,1714171839989,-500.0,0.00012896,2]
[323706783,1714171839998,-500.0,0.00012896,2]
[323706784,1714171840007,-500.0,0.00012896,2]
[323706785,1714171840016,-500.0,0.00012896,2]
[323706786,1714171840025,-500.0,0.00012896,2]
[323706787,1714171840034,-500.0,0.00012896,2]
[323706788,1714171840044,-500.0,0.00012896,2]
[323706789,1714171840053,-500.0,0.00012896,2]
[323706790,1714171840063,-776.03,0.00012896,2]
[323706791,1714171840072,-500.0,0.00012896,2]
[323706792,1714171840081,-500.0,0.00012896,2]
[323706793,1714171840090,-500.0,0.00012896,2]
[323706794,1714171840099,-500.0,0.00012896,2]
[323706795,1714171840110,-500.0,0.00012896,2]
[323706796,1714171840120,-500.0,0.00012896,2]
[323706797,1714171840130,-500.0,0.00012896,2]
[323706798,1714171840139,-331.82557793,0.00012896,2]
[323706799,1714171840147,-500.0,0.00012896,2]
[323706800,1714171840158,-500.0,0.00012896,2]
[323706801,1714171840167,-500.0,0.00012896,2]
[323706802,1714171840175,-500.0,0.00012896,2]
[323706803,1714171840185,-912.03,0.00012896,2]
[323706804,1714171840196,-500.0,0.00012896,2]
[323706805,1714171840205,-500.0,0.00012896,2]
[323706806,1714171840216,-500.0,0.00012896,2]
[323706807,1714171840227,-500.0,0.00012896,2]
[323706808,1714171840237,-500.0,0.00012896,2]
[323706809,1714171840246,-494.83,0.00012896,2]
[323706810,1714171840255,-500.0,0.00012896,2]
[323706811,1714171840266,-278.69621335,0.00012896,2]
[323706812,1714171840277,-500.0,0.00012896,2]
[323706813,1714171840286,-1066.71,0.00012896,2]
[323706814,1714171840295,-500.0,0.00012896,2]
[323706815,1714171840304,-500.0,0.00012896,2]
[323706816,1714171840313,-1048.76,0.00012896,2]
[323706817,1714171840323,-737.62,0.00012896,2]
[323706818,1714171840332,-500.0,0.00012896,2]
[323706819,1714171840340,-500.0,0.00012896,2]
[323706820,1714171840350,-255.99459385,0.00012896,2]
[323706821,1714171840359,-500.0,0.00012896,2]
[323706822,1714171840368,-584.03,0.00012896,2]
[323706823,1714171840377,-500.0,0.00012896,2]
[323706824,1714171840386,-500.0,0.00012896,2]
[323706825,1714171840395,-500.0,0.00012896,2]
[323706826,1714171840404,-500.0,0.00012896,2]
[323706827,1714171840414,-500.0,0.00012896,2]
[323706828,1714171840423,-500.0,0.00012896,2]
[323706829,1714171840433,-500.0,0.00012896,2]
[323706830,1714171840442,-500.0,0.00012897,2]
[323706831,1714171840453,-500.0,0.00012897,2]
[323706832,1714171840463,-500.0,0.00012897,2]
[323706833,1714171840473,-422.90417892,0.00012897,2]
[323706834,1714171840482,-544.07,0.00012897,2]
[323706835,1714171840492,-500.0,0.00012897,2]
[323706836,1714171840501,-500.0,0.00012897,2]
[323706837,1714171840510,-500.0,0.00012897,2]
[323706838,1714171840523,-500.0,0.00012897,2]
[323706839,1714171840533,-500.0,0.00012897,2]
[323706840,1714171840542,-500.0,0.00012897,2]
[323706841,1714171840552,-500.0,0.00012897,2]
[323706842,1714171840561,-150.0,0.00012897,2]
[323706843,1714171840571,-642.45,0.00012897,2]
[323706844,1714171840581,-500.0,0.00012897,2]
[323706845,1714171840591,-575.04,0.00012897,2]
[323706846,1714171840600,-500.0,0.00012897,2]
[323706847,1714171840609,-500.0,0.00012897,2]
[323706848,1714171840618,-500.0,0.00012897,2]
[323706849,1714171840628,-500.0,0.00012897,2]
[323706850,1714171840637,-500.0,0.00012897,2]
[323706851,1714171840646,-500.0,0.00012897,2]
[323706852,1714171840654,-500.0,0.00012897,2]
[323706853,1714171840665,-500.0,0.00012897,2]
[323706854,1714171840674,-500.0,0.00012897,2]
[323706855,1714171840683,-500.0,0.00012897,2]
[323706856,1714171840692,-500.0,0.00012897,2]
[323706857,1714171840702,-500.0,0.00012897,2]
[323706858,1714171840711,-500.0,0.00012897,2]
[323706859,1714171840720,-500.0,0.00012897,2]
[323706860,1714171840729,-500.0,0.00012897,2]
[323706861,1714171840738,-500.0,0.00012897,2]
[323706862,1714171840747,-500.0,0.00012897,2]
[323706863,1714171840757,-500.0,0.00012897,2]
[323706864,1714171840766,-500.0,0.00012897,2]
[323706865,1714171840776,-500.0,0.00012897,2]
[323706866,1714171840785,-500.0,0.00012897,2]
[323706867,1714171840795,-500.0,0.00012897,2]
[323706868,1714171840805,-647.03,0.00012897,2]
[323706869,1714171840814,-500.0,0.00012897,2]
[323706870,1714171840823,-546.98,0.00012897,2]
[323706871,1714171840832,-500.0,0.00012897,2]
[323706872,1714171840842,-500.0,0.00012897,2]
[323706873,1714171840850,-500.0,0.00012897,2]
[323706874,1714171840860,-500.0,0.00012897,2]
[323706875,1714171840869,-500.0,0.00012897,2]
[323706876,1714171840878,-500.0,0.00012897,2]
[323706877,1714171840886,-500.0,0.00012897,2]
[323706878,1714171840895,-500.0,0.00012897,2]
[323706879,1714171840904,-500.0,0.00012897,2]
[323706880,1714171840914,-500.0,0.00012897,2]
[323706881,1714171840923,-371.37,0.00012897,2]
[323706882,1714171840932,-453.0094624,0.00012897,2]
[323706883,1714171840941,-635.79,0.00012897,2]
[323706884,1714171840951,-500.0,0.00012897,2]
[323706885,1714171840960,-500.0,0.00012897,2]
[323706886,1714171840969,-500.0,0.00012897,2]
[323706887,1714171840978,-500.0,0.00012897,2]
[323706888,1714171840987,-500.0,0.00012897,2]
[323706889,1714171840997,-500.0,0.00012897,2]
[323706890,1714171841005,-500.0,0.00012897,2]
[323706891,1714171841015,-500.0,0.00012897,2]
[323706892,1714171841027,-500.0,0.00012897,2]
[323706893,1714171841036,-641.15,0.00012897,2]
[323706894,1714171841045,-500.0,0.00012897,2]
[323706895,1714171841054,-500.0,0.00012897,2]
[323706896,1714171841063,-500.0,0.00012897,2]
[323706897,1714171841072,-500.0,0.00012897,2]
[323706898,1714171841081,-500.0,0.00012897,2]